[Event "*** Titled Tuesday Blitz"]
[Site "Chess.com"]
[Date "2019.01.01"]
[Round "4"]
[White "GulamaliRises"]
[Black "riconaipe"]
[Result "0-1"]
[WhiteElo "2631"]
[BlackElo "2446"]
[TimeControl "180+2"]
[EndTime "13:54:55 PST"]
[Termination "riconaipe won on time"]

1. e4 {[%clk 0:03:01.9]} 1... c6 {[%clk 0:02:59.2]} 2. d4 {[%clk 0:03:02.4]}
2... d5 {[%clk 0:03:00.8]} 3. f3 {[%clk 0:03:03.7]} 3... e6 {[%clk 0:03:01]} 4.
Nc3 {[%clk 0:03:04]} 4... Bb4 {[%clk 0:03:02.2]} 5. Bf4 {[%clk 0:03:03.8]} 5...
Nf6 {[%clk 0:03:02.8]} 6. Qd3 {[%clk 0:03:03.7]} 6... b6 {[%clk 0:03:00.2]} 7.
Ne2 {[%clk 0:03:04.2]} 7... Ba6 {[%clk 0:03:00.4]} 8. Qe3 {[%clk 0:03:05.5]}
8... O-O {[%clk 0:03:00.5]} 9. O-O-O {[%clk 0:03:06.1]} 9... Nbd7 {[%clk
0:02:59.8]} 10. a3 {[%clk 0:02:57.4]} 10... Be7 {[%clk 0:02:52.6]} 11. g4 {[%clk
0:02:58.3]} 11... Ne8 {[%clk 0:02:50.4]} 12. h4 {[%clk 0:02:43.3]} 12... Nd6
{[%clk 0:02:48.7]} 13. Bxd6 {[%clk 0:02:39.8]} 13... Bxd6 {[%clk 0:02:49.1]} 14.
e5 {[%clk 0:02:38.3]} 14... Be7 {[%clk 0:02:47.1]} 15. f4 {[%clk 0:02:39.7]}
15... c5 {[%clk 0:02:45.2]} 16. f5 {[%clk 0:02:39.7]} 16... Rc8 {[%clk 0:02:40]}
17. g5 {[%clk 0:02:29.6]} 17... exf5 {[%clk 0:02:33.1]} 18. Nxd5 {[%clk
0:02:29]} 18... Nb8 {[%clk 0:01:53.6]} 19. Nf6+ {[%clk 0:01:50.9]} 19... Kh8
{[%clk 0:01:49.8]} 20. d5 {[%clk 0:01:23.7]} 20... Bxf6 {[%clk 0:01:44.7]} 21.
gxf6 {[%clk 0:01:24.5]} 21... gxf6 {[%clk 0:01:46.3]} 22. e6 {[%clk 0:01:13.3]}
22... fxe6 {[%clk 0:01:41.4]} 23. dxe6 {[%clk 0:01:13.2]} 23... Qe7 {[%clk
0:01:39.5]} 24. Nf4 {[%clk 0:01:06.7]} 24... Bb7 {[%clk 0:01:33.6]} 25. Rg1
{[%clk 0:01:05.6]} 25... Rcd8 {[%clk 0:01:23.8]} 26. Bd3 {[%clk 0:00:53.2]}
26... Nc6 {[%clk 0:01:21.8]} 27. Bxf5 {[%clk 0:00:54.2]} 27... Ne5 {[%clk
0:01:11.5]} 28. h5 {[%clk 0:00:26.9]} 28... Rxd1+ {[%clk 0:00:54.3]} 29. Rxd1
{[%clk 0:00:27.1]} 29... Rd8 {[%clk 0:00:55.4]} 30. Rxd8+ {[%clk 0:00:11]} 30...
Qxd8 {[%clk 0:00:56.3]} 31. h6 {[%clk 0:00:04.1]} 31... Qf8 {[%clk 0:00:49.7]}
32. Nh5 {[%clk 0:00:04.7]} 32... Bc8 {[%clk 0:00:39.6]} 33. e7 {[%clk
0:00:02.7]} 33... Qe8 {[%clk 0:00:37.1]} 34. Nxf6 {[%clk 0:00:02.1]} 34... Qxe7
{[%clk 0:00:38.2]} 35. Nd5 {[%clk 0:00:03.5]} 35... Qd6 {[%clk 0:00:36.4]} 36.
Qg5 {[%clk 0:00:04.8]} 36... Qf8 {[%clk 0:00:25.4]} 0-1

[Event "*** Titled Tuesday Blitz"]
[Site "Chess.com"]
[Date "2019.01.01"]
[Round "4"]
[White "P0ubelle"]
[Black "tteshan"]
[Result "0-1"]
[WhiteElo "2173"]
[BlackElo "2135"]
[TimeControl "180+2"]
[EndTime "13:55:00 PST"]
[Termination "tteshan won by resignation"]

1. e4 {[%clk 0:03:01.8]} 1... c5 {[%clk 0:02:56.6]} 2. Nf3 {[%clk 0:03:02.4]}
2... Nc6 {[%clk 0:02:57.6]} 3. Bb5 {[%clk 0:03:03.3]} 3... Na5 {[%clk
0:02:57.8]} 4. O-O {[%clk 0:03:02]} 4... a6 {[%clk 0:02:57.6]} 5. Be2 {[%clk
0:03:02.8]} 5... g6 {[%clk 0:02:55.6]} 6. c3 {[%clk 0:03:01.4]} 6... Bg7 {[%clk
0:02:55.6]} 7. d4 {[%clk 0:03:02.8]} 7... cxd4 {[%clk 0:02:55.7]} 8. cxd4 {[%clk
0:03:03.8]} 8... Nf6 {[%clk 0:02:53.1]} 9. Nc3 {[%clk 0:03:04.9]} 9... O-O
{[%clk 0:02:52.9]} 10. d5 {[%clk 0:03:05.1]} 10... b5 {[%clk 0:02:45.1]} 11. Bd3
{[%clk 0:03:03.3]} 11... d6 {[%clk 0:02:41.4]} 12. h3 {[%clk 0:03:03]} 12... Nb7
{[%clk 0:02:40.5]} 13. Bc2 {[%clk 0:02:59.2]} 13... Nc5 {[%clk 0:02:40.8]} 14.
Re1 {[%clk 0:02:59]} 14... b4 {[%clk 0:02:38.5]} 15. Nb1 {[%clk 0:02:59.4]}
15... Qb6 {[%clk 0:02:36.3]} 16. Nbd2 {[%clk 0:02:59.3]} 16... a5 {[%clk
0:02:35.3]} 17. Nf1 {[%clk 0:02:52.9]} 17... Ba6 {[%clk 0:02:33.6]} 18. Ng3
{[%clk 0:02:53.3]} 18... h5 {[%clk 0:02:31.7]} 19. Bg5 {[%clk 0:02:49.3]} 19...
Rfe8 {[%clk 0:02:27.7]} 20. Rc1 {[%clk 0:02:38.9]} 20... Nfd7 {[%clk 0:02:23.3]}
21. b3 {[%clk 0:02:26.9]} 21... Rac8 {[%clk 0:02:18.4]} 22. Be3 {[%clk
0:02:27.7]} 22... Qb7 {[%clk 0:02:12.5]} 23. Ng5 {[%clk 0:02:28.4]} 23... Bb2
{[%clk 0:02:01]} 24. Rb1 {[%clk 0:02:16.1]} 24... Bc3 {[%clk 0:02:02]} 25. Bd2
{[%clk 0:02:16.5]} 25... Be5 {[%clk 0:02:00.2]} 26. Nxh5 {[%clk 0:02:15.2]}
26... gxh5 {[%clk 0:01:57.2]} 27. Qxh5 {[%clk 0:02:16.1]} 27... Nf6 {[%clk
0:01:35.1]} 28. Qxf7+ {[%clk 0:02:15.2]} 28... Kh8 {[%clk 0:01:36.2]} 29. Qg6
{[%clk 0:02:05.8]} 29... e6 {[%clk 0:01:31.3]} 30. Nf7+ {[%clk 0:01:49.7]} 30...
Qxf7 {[%clk 0:01:20.6]} 31. Qxf7 {[%clk 0:01:50.7]} 31... Rg8 {[%clk 0:01:02.4]}
32. dxe6 {[%clk 0:01:31.7]} 32... Rg7 {[%clk 0:01:00]} 33. Qxg7+ {[%clk
0:01:23.5]} 33... Kxg7 {[%clk 0:01:01.9]} 34. a3 {[%clk 0:01:22.7]} 34... Nxe6
{[%clk 0:00:56.6]} 35. Bd1 {[%clk 0:01:22.2]} 35... bxa3 {[%clk 0:00:54.3]} 36.
Bf3 {[%clk 0:01:19.2]} 36... a2 {[%clk 0:00:54.6]} 37. Ra1 {[%clk 0:01:20.2]}
37... Bxa1 {[%clk 0:00:54.1]} 38. Rxa1 {[%clk 0:01:21.3]} 38... Rc2 {[%clk
0:00:53.8]} 39. Bxa5 {[%clk 0:01:21.3]} 39... Nd4 {[%clk 0:00:50.1]} 40. Bd1
{[%clk 0:01:18.3]} 40... Nxb3 {[%clk 0:00:41.4]} 41. Bxc2 {[%clk 0:01:14]} 41...
Nxa1 {[%clk 0:00:42.5]} 42. Bd1 {[%clk 0:01:15.2]} 42... Nxe4 {[%clk 0:00:41.1]}
43. f3 {[%clk 0:01:16.5]} 43... Nc2 {[%clk 0:00:39.2]} 44. Bxc2 {[%clk
0:01:12.8]} 44... a1=Q+ {[%clk 0:00:39.8]} 45. Kh2 {[%clk 0:01:14.5]} 45... Qxa5
{[%clk 0:00:39.9]} 46. Bxe4 {[%clk 0:01:15.6]} 46... Qe5+ {[%clk 0:00:40.8]} 47.
Kg1 {[%clk 0:01:16.4]} 47... Qg3 {[%clk 0:00:40.4]} 48. Bd5 {[%clk 0:01:14.9]}
48... Bd3 {[%clk 0:00:39.1]} 49. Bc6 {[%clk 0:01:12.1]} 49... Kf6 {[%clk
0:00:36.1]} 0-1

[Event "*** Titled Tuesday Blitz"]
[Site "Chess.com"]
[Date "2019.01.01"]
[Round "4"]
[White "pKiLz5Rn9b"]
[Black "Zhuu96"]
[Result "0-1"]
[WhiteElo "2671"]
[BlackElo "2880"]
[TimeControl "180+2"]
[EndTime "13:55:04 PST"]
[Termination "Zhuu96 won by resignation"]

1. Nf3 {[%clk 0:03:01.9]} 1... Nf6 {[%clk 0:02:58.6]} 2. b3 {[%clk 0:03:02.6]}
2... a5 {[%clk 0:02:58.3]} 3. c4 {[%clk 0:03:02.9]} 3... a4 {[%clk 0:02:58.9]}
4. b4 {[%clk 0:03:04.2]} 4... e6 {[%clk 0:02:59.1]} 5. a3 {[%clk 0:03:05]} 5...
d5 {[%clk 0:03:00.3]} 6. e3 {[%clk 0:03:02.3]} 6... c5 {[%clk 0:03:00]} 7. bxc5
{[%clk 0:03:02.9]} 7... Bxc5 {[%clk 0:02:59.8]} 8. d4 {[%clk 0:03:03.6]} 8...
Be7 {[%clk 0:03:00.9]} 9. Nc3 {[%clk 0:03:04.6]} 9... Bd7 {[%clk 0:02:58.4]} 10.
Bb2 {[%clk 0:03:05]} 10... O-O {[%clk 0:02:57.7]} 11. Rc1 {[%clk 0:02:56.9]}
11... dxc4 {[%clk 0:02:52.1]} 12. Bxc4 {[%clk 0:02:56.3]} 12... Qa5 {[%clk
0:02:53]} 13. Qe2 {[%clk 0:02:53]} 13... Rc8 {[%clk 0:02:48.2]} 14. Ne5 {[%clk
0:02:44.1]} 14... b5 {[%clk 0:02:41.3]} 15. Nxd7 {[%clk 0:02:23.1]} 15... Nbxd7
{[%clk 0:02:41.9]} 16. Bxb5 {[%clk 0:01:47]} 16... Bxa3 {[%clk 0:02:42.5]} 17.
O-O {[%clk 0:01:46.4]} 17... Bxb2 {[%clk 0:02:43]} 18. Qxb2 {[%clk 0:01:47.1]}
18... Rab8 {[%clk 0:02:35.3]} 19. h3 {[%clk 0:01:13.3]} 19... h6 {[%clk
0:02:18.4]} 20. Qa3 {[%clk 0:00:39.5]} 20... Rxc3 {[%clk 0:02:19.2]} 21. Rxc3
{[%clk 0:00:40.2]} 21... Qxb5 {[%clk 0:02:13.5]} 22. Ra1 {[%clk 0:00:39]} 22...
Ra8 {[%clk 0:02:09.1]} 23. Rc2 {[%clk 0:00:25.4]} 23... Nd5 {[%clk 0:02:06.5]}
24. Rb2 {[%clk 0:00:26.7]} 24... Qc6 {[%clk 0:02:07.2]} 25. Rbb1 {[%clk
0:00:19]} 25... N7b6 {[%clk 0:02:07.2]} 26. Rc1 {[%clk 0:00:20.2]} 26... Nc4
{[%clk 0:02:05.1]} 27. Qa2 {[%clk 0:00:20]} 27... Ndb6 {[%clk 0:02:05.8]} 28.
Rc2 {[%clk 0:00:21.5]} 28... a3 {[%clk 0:02:05.5]} 29. Rac1 {[%clk 0:00:23.2]}
29... Ra4 {[%clk 0:02:05.3]} 30. Rc3 {[%clk 0:00:24.9]} 30... Qa8 {[%clk
0:02:02.8]} 31. R3c2 {[%clk 0:00:16.6]} 31... Qe4 {[%clk 0:02:00.6]} 32. Rc3
{[%clk 0:00:12.1]} 32... h5 {[%clk 0:01:57.1]} 33. h4 {[%clk 0:00:10.9]} 33...
g6 {[%clk 0:01:50.9]} 34. R3c2 {[%clk 0:00:10.1]} 34... Qd5 {[%clk 0:01:40.5]}
35. Qb3 {[%clk 0:00:04.9]} 35... Qa5 {[%clk 0:01:39.4]} 36. Qa2 {[%clk
0:00:04.6]} 36... Rb4 {[%clk 0:01:39.8]} 37. Rc3 {[%clk 0:00:02.9]} 37... Rb2
{[%clk 0:01:39.9]} 38. Qa1 {[%clk 0:00:04.5]} 38... Qb4 {[%clk 0:01:40.7]} 39.
R3c2 {[%clk 0:00:05.1]} 39... Rxc2 {[%clk 0:01:34.4]} 40. Rxc2 {[%clk 0:00:07]}
40... Qb3 {[%clk 0:01:36]} 41. Rc1 {[%clk 0:00:05.9]} 41... Nd5 {[%clk 0:01:16]}
42. Rb1 {[%clk 0:00:05.5]} 42... Nb2 {[%clk 0:01:17.3]} 43. Rc1 {[%clk
0:00:03.3]} 43... Nc3 {[%clk 0:01:18.6]} 44. Kh2 {[%clk 0:00:04.9]} 44... a2
{[%clk 0:01:18.3]} 45. e4 {[%clk 0:00:05.9]} 45... Nbd1 {[%clk 0:01:13.4]} 46.
d5 {[%clk 0:00:05.2]} 46... exd5 {[%clk 0:01:14]} 47. exd5 {[%clk 0:00:07.1]}
47... Qxd5 {[%clk 0:01:15.1]} 48. Rxc3 {[%clk 0:00:05.4]} 48... Qe5+ {[%clk
0:01:15.7]} 49. g3 {[%clk 0:00:06.1]} 49... Nxc3 {[%clk 0:01:15.6]} 0-1

[Event "*** Titled Tuesday Blitz"]
[Site "Chess.com"]
[Date "2019.01.01"]
[Round "4"]
[White "TBergh98"]
[Black "IamSchrodingersCat"]
[Result "0-1"]
[WhiteElo "2264"]
[BlackElo "2489"]
[TimeControl "180+2"]
[EndTime "13:55:08 PST"]
[Termination "IamSchrodingersCat won by resignation"]

1. Nf3 {[%clk 0:03:01.9]} 1... g6 {[%clk 0:03:00.8]} 2. c4 {[%clk 0:03:01.6]}
2... Bg7 {[%clk 0:03:02.7]} 3. Nc3 {[%clk 0:03:03]} 3... d6 {[%clk 0:03:04.1]}
4. e4 {[%clk 0:03:03.9]} 4... Nd7 {[%clk 0:03:05.6]} 5. d4 {[%clk 0:03:05]} 5...
e5 {[%clk 0:03:06.9]} 6. Be3 {[%clk 0:03:03.5]} 6... Ngf6 {[%clk 0:03:05.5]} 7.
Be2 {[%clk 0:02:59.3]} 7... O-O {[%clk 0:03:02]} 8. dxe5 {[%clk 0:02:57.2]} 8...
dxe5 {[%clk 0:03:00.9]} 9. O-O {[%clk 0:02:57.8]} 9... c6 {[%clk 0:02:55.1]} 10.
b4 {[%clk 0:02:56.8]} 10... Nh5 {[%clk 0:02:44.6]} 11. Nd2 {[%clk 0:02:54.1]}
11... Nf4 {[%clk 0:02:45.2]} 12. c5 {[%clk 0:02:53.2]} 12... Nf6 {[%clk
0:02:33.6]} 13. Nc4 {[%clk 0:02:48.6]} 13... Be6 {[%clk 0:02:02.4]} 14. Nd6
{[%clk 0:02:43.7]} 14... b5 {[%clk 0:01:54.6]} 15. Re1 {[%clk 0:02:16.1]} 15...
Ne8 {[%clk 0:01:38.2]} 16. a4 {[%clk 0:01:56.4]} 16... a6 {[%clk 0:01:33.1]} 17.
axb5 {[%clk 0:01:50.8]} 17... axb5 {[%clk 0:01:35]} 18. Qd2 {[%clk 0:01:49]}
18... Nxe2+ {[%clk 0:01:32]} 19. Nxe2 {[%clk 0:01:47.1]} 19... Nxd6 {[%clk
0:01:13.8]} 20. cxd6 {[%clk 0:01:47.9]} 20... Qd7 {[%clk 0:01:07.2]} 21. Bc5
{[%clk 0:01:38.1]} 21... Rfd8 {[%clk 0:00:56.9]} 22. Reb1 {[%clk 0:01:22]} 22...
Bf8 {[%clk 0:00:55.3]} 23. Rxa8 {[%clk 0:01:00.9]} 23... Rxa8 {[%clk 0:00:57.2]}
24. Rd1 {[%clk 0:00:59.2]} 24... Bb3 {[%clk 0:00:49.2]} 25. Rb1 {[%clk
0:00:57.5]} 25... Bc4 {[%clk 0:00:50.2]} 26. Nc3 {[%clk 0:00:39.5]} 26... Rd8
{[%clk 0:00:48.2]} 27. Rd1 {[%clk 0:00:40.2]} 27... Qe6 {[%clk 0:00:35.7]} 28.
Qg5 {[%clk 0:00:35.4]} 28... Rd7 {[%clk 0:00:34.2]} 29. h3 {[%clk 0:00:21.2]}
29... Bb3 {[%clk 0:00:22.1]} 30. Ra1 {[%clk 0:00:21.8]} 30... Kg7 {[%clk
0:00:18.9]} 31. Be3 {[%clk 0:00:20.5]} 31... Qxd6 {[%clk 0:00:14.3]} 32. Qh6+
{[%clk 0:00:19.7]} 32... Kg8 {[%clk 0:00:15.4]} 33. Ra8 {[%clk 0:00:21]} 33...
Rd8 {[%clk 0:00:16.5]} 34. Rxd8 {[%clk 0:00:20.9]} 34... Qxd8 {[%clk 0:00:18.4]}
35. Qg5 {[%clk 0:00:21]} 35... Qxg5 {[%clk 0:00:19.2]} 36. Bxg5 {[%clk
0:00:22.9]} 36... Bxb4 {[%clk 0:00:20.3]} 37. Ne2 {[%clk 0:00:23.5]} 37... Be6
{[%clk 0:00:19]} 38. Nc1 {[%clk 0:00:24.7]} 38... Bc4 {[%clk 0:00:19.2]} 39. Be3
{[%clk 0:00:24.3]} 39... Bd6 {[%clk 0:00:17.3]} 40. f3 {[%clk 0:00:25.4]} 40...
b4 {[%clk 0:00:17.9]} 41. Kf2 {[%clk 0:00:25.3]} 41... b3 {[%clk 0:00:19.3]} 42.
Ne2 {[%clk 0:00:27.2]} 42... Bxe2 {[%clk 0:00:17]} 43. Kxe2 {[%clk 0:00:29.1]}
43... b2 {[%clk 0:00:18.1]} 0-1

[Event "*** Titled Tuesday Blitz"]
[Site "Chess.com"]
[Date "2019.01.01"]
[Round "4"]
[White "mersad_98"]
[Black "Litti"]
[Result "0-1"]
[WhiteElo "2631"]
[BlackElo "2514"]
[TimeControl "180+2"]
[EndTime "13:55:13 PST"]
[Termination "Litti won by resignation"]

1. e4 {[%clk 0:03:01.9]} 1... c5 {[%clk 0:03:00.9]} 2. Nf3 {[%clk 0:03:02.8]}
2... e6 {[%clk 0:03:01.7]} 3. d4 {[%clk 0:03:04.2]} 3... cxd4 {[%clk 0:03:03.6]}
4. Nxd4 {[%clk 0:03:06.1]} 4... Nf6 {[%clk 0:03:04.8]} 5. Nc3 {[%clk 0:03:07.8]}
5... Nc6 {[%clk 0:03:05.7]} 6. Ndb5 {[%clk 0:03:04.6]} 6... Bb4 {[%clk
0:03:06.4]} 7. a3 {[%clk 0:03:04.7]} 7... Bxc3+ {[%clk 0:03:07.5]} 8. Nxc3
{[%clk 0:03:06.6]} 8... d5 {[%clk 0:03:08.9]} 9. exd5 {[%clk 0:03:08.5]} 9...
exd5 {[%clk 0:03:10.8]} 10. Bd3 {[%clk 0:03:10.2]} 10... O-O {[%clk 0:03:11.3]}
11. O-O {[%clk 0:03:11.8]} 11... d4 {[%clk 0:03:12.6]} 12. Ne2 {[%clk
0:03:13.5]} 12... Bg4 {[%clk 0:03:13.3]} 13. f3 {[%clk 0:03:15.2]} 13... Bh5
{[%clk 0:03:14.1]} 14. Nf4 {[%clk 0:03:16]} 14... Bg6 {[%clk 0:03:14.5]} 15.
Nxg6 {[%clk 0:03:17.3]} 15... hxg6 {[%clk 0:03:16.4]} 16. f4 {[%clk 0:03:17]}
16... Ne7 {[%clk 0:03:16]} 17. Qf3 {[%clk 0:03:14.6]} 17... Qd5 {[%clk
0:03:08.9]} 18. Bd2 {[%clk 0:03:13.1]} 18... Qxf3 {[%clk 0:03:08.9]} 19. Rxf3
{[%clk 0:03:15]} 19... Nf5 {[%clk 0:03:09.1]} 20. Re1 {[%clk 0:03:12.9]} 20...
Rfe8 {[%clk 0:03:07.9]} 21. Rff1 {[%clk 0:03:14.3]} 21... Nd5 {[%clk 0:03:06.2]}
22. Rxe8+ {[%clk 0:03:10.7]} 22... Rxe8 {[%clk 0:03:08.1]} 23. Re1 {[%clk
0:03:12.5]} 23... Rxe1+ {[%clk 0:03:08.1]} 24. Bxe1 {[%clk 0:03:14.4]} 24...
Nxf4 {[%clk 0:03:08.9]} 25. Be4 {[%clk 0:03:16]} 25... b6 {[%clk 0:03:03.3]} 26.
Bf2 {[%clk 0:03:13.5]} 26... Ne3 {[%clk 0:02:58]} 27. c3 {[%clk 0:02:44.1]}
27... Ne2+ {[%clk 0:02:46.3]} 28. Kh1 {[%clk 0:02:44.6]} 28... Nd1 {[%clk
0:02:31.2]} 29. Be1 {[%clk 0:02:31.8]} 29... dxc3 {[%clk 0:01:43.3]} 30. bxc3
{[%clk 0:02:33.7]} 30... Ndxc3 {[%clk 0:01:32.3]} 31. Bd3 {[%clk 0:02:27.8]}
31... Nf4 {[%clk 0:01:22.5]} 32. Bc4 {[%clk 0:02:23.7]} 32... Nfd5 {[%clk
0:01:20.2]} 33. g3 {[%clk 0:02:19.3]} 33... Kf8 {[%clk 0:01:18.8]} 34. Kg2
{[%clk 0:02:20.7]} 34... Ne3+ {[%clk 0:01:18.4]} 35. Kf3 {[%clk 0:02:22.3]}
35... Nxc4 {[%clk 0:01:18.1]} 36. Bxc3 {[%clk 0:02:24]} 36... f6 {[%clk
0:01:11.6]} 37. Ke4 {[%clk 0:02:23.1]} 37... Kf7 {[%clk 0:00:59.7]} 38. a4
{[%clk 0:02:24.3]} 38... Ke6 {[%clk 0:00:57.6]} 39. g4 {[%clk 0:02:21.3]} 39...
Nd6+ {[%clk 0:00:52.8]} 40. Kf4 {[%clk 0:02:19.1]} 40... g5+ {[%clk 0:00:45.9]}
41. Ke3 {[%clk 0:02:16.9]} 41... Kd5 {[%clk 0:00:45.3]} 42. Kd3 {[%clk
0:02:07.7]} 42... Ne4 {[%clk 0:00:40.8]} 43. Bb4 {[%clk 0:01:55.8]} 43... Nf2+
{[%clk 0:00:28.5]} 44. Ke2 {[%clk 0:01:56.6]} 44... Nxg4 {[%clk 0:00:28.8]} 45.
h3 {[%clk 0:01:58.5]} 45... Ne5 {[%clk 0:00:28.5]} 46. Bf8 {[%clk 0:02:00.4]}
46... Nd7 {[%clk 0:00:20.7]} 47. Be7 {[%clk 0:01:47.2]} 47... Nc5 {[%clk
0:00:20.3]} 48. Bf8 {[%clk 0:01:43]} 48... Nxa4 {[%clk 0:00:20.9]} 49. Bxg7
{[%clk 0:01:44.1]} 49... Ke6 {[%clk 0:00:20.5]} 50. Bf8 {[%clk 0:01:45.5]} 50...
Nc5 {[%clk 0:00:21.8]} 51. Ke3 {[%clk 0:01:46.4]} 51... a5 {[%clk 0:00:22.6]}
52. Kd4 {[%clk 0:01:46.9]} 52... a4 {[%clk 0:00:22.9]} 53. Kc4 {[%clk
0:01:48.3]} 53... a3 {[%clk 0:00:22.9]} 54. Kc3 {[%clk 0:01:49.9]} 54... f5
{[%clk 0:00:21.2]} 55. Bh6 {[%clk 0:01:50.9]} 55... g4 {[%clk 0:00:22]} 56. hxg4
{[%clk 0:01:52.8]} 56... fxg4 {[%clk 0:00:23.8]} 57. Bc1 {[%clk 0:01:52.9]}
57... a2 {[%clk 0:00:23.2]} 58. Kb2 {[%clk 0:01:54.4]} 58... Nd3+ {[%clk
0:00:23.7]} 59. Ka1 {[%clk 0:01:55.3]} 59... Nxc1 {[%clk 0:00:25.6]} 60. Kb2
{[%clk 0:01:56.6]} 60... g3 {[%clk 0:00:27]} 0-1

[Event "*** Titled Tuesday Blitz"]
[Site "Chess.com"]
[Date "2019.01.01"]
[Round "4"]
[White "StephenDedalus83"]
[Black "MITerryble"]
[Result "0-1"]
[WhiteElo "2721"]
[BlackElo "2826"]
[TimeControl "180+2"]
[EndTime "13:55:14 PST"]
[Termination "MITerryble won by resignation"]

1. e4 {[%clk 0:03:01.9]} 1... e6 {[%clk 0:03:00.8]} 2. d4 {[%clk 0:03:02]} 2...
d5 {[%clk 0:03:01.7]} 3. Nc3 {[%clk 0:03:03]} 3... Nf6 {[%clk 0:03:02.4]} 4. e5
{[%clk 0:03:03.9]} 4... Nfd7 {[%clk 0:03:03.4]} 5. f4 {[%clk 0:03:05.5]} 5... c5
{[%clk 0:03:04.8]} 6. Nf3 {[%clk 0:03:07.1]} 6... Nc6 {[%clk 0:03:05.5]} 7. Be3
{[%clk 0:03:08.2]} 7... Be7 {[%clk 0:03:06.7]} 8. dxc5 {[%clk 0:03:08.1]} 8...
O-O {[%clk 0:03:06.1]} 9. Qd2 {[%clk 0:03:08.4]} 9... Nxc5 {[%clk 0:03:05.9]}
10. Be2 {[%clk 0:03:06.2]} 10... a6 {[%clk 0:03:01.7]} 11. O-O {[%clk
0:03:05.5]} 11... b5 {[%clk 0:03:02.5]} 12. a3 {[%clk 0:03:06.5]} 12... Bb7
{[%clk 0:03:02.2]} 13. Nd4 {[%clk 0:03:07.3]} 13... Nxd4 {[%clk 0:03:02.2]} 14.
Bxd4 {[%clk 0:03:08.1]} 14... Ne4 {[%clk 0:03:02]} 15. Nxe4 {[%clk 0:03:06.7]}
15... dxe4 {[%clk 0:03:03.9]} 16. Qe3 {[%clk 0:03:07.4]} 16... Rc8 {[%clk
0:03:02.2]} 17. c3 {[%clk 0:03:08.2]} 17... Qc7 {[%clk 0:02:57.9]} 18. b4 {[%clk
0:03:03.3]} 18... Bd5 {[%clk 0:02:55.8]} 19. a4 {[%clk 0:03:02.3]} 19... Qc6
{[%clk 0:02:42.1]} 20. axb5 {[%clk 0:02:59.8]} 20... axb5 {[%clk 0:02:44]} 21.
Ra7 {[%clk 0:03:00.6]} 21... Rfe8 {[%clk 0:02:36.3]} 22. Rfa1 {[%clk 0:02:40.7]}
22... Rb8 {[%clk 0:01:53.5]} 23. R1a6 {[%clk 0:02:22.7]} 23... Qc8 {[%clk
0:01:54]} 24. g3 {[%clk 0:02:23.5]} 24... g6 {[%clk 0:01:47.2]} 25. h4 {[%clk
0:02:23.7]} 25... Bf8 {[%clk 0:01:02.3]} 26. h5 {[%clk 0:02:22.8]} 26... Re7
{[%clk 0:01:03.1]} 27. Ra5 {[%clk 0:01:54.6]} 27... Bc6 {[%clk 0:00:43.5]} 28.
g4 {[%clk 0:01:28.7]} 28... Rxa7 {[%clk 0:00:40.3]} 29. Rxa7 {[%clk 0:01:29.3]}
29... Ra8 {[%clk 0:00:38.8]} 30. g5 {[%clk 0:01:29.4]} 30... Rxa7 {[%clk
0:00:28.8]} 31. Bxa7 {[%clk 0:01:29.7]} 31... gxh5 {[%clk 0:00:28.9]} 32. Bxh5
{[%clk 0:01:29.8]} 32... Qa6 {[%clk 0:00:25.5]} 33. Bc5 {[%clk 0:01:28.9]} 33...
Qa1+ {[%clk 0:00:25.6]} 34. Kg2 {[%clk 0:01:26.2]} 34... Bxc5 {[%clk 0:00:22.7]}
35. bxc5 {[%clk 0:01:27.1]} 35... b4 {[%clk 0:00:18.8]} 36. cxb4 {[%clk
0:01:27.2]} 36... Qb2+ {[%clk 0:00:20.1]} 37. Kg3 {[%clk 0:01:26.4]} 37... Qxb4
{[%clk 0:00:21.1]} 38. Be2 {[%clk 0:01:25.7]} 38... Bd5 {[%clk 0:00:21.5]} 39.
Bf1 {[%clk 0:01:25.9]} 39... Kg7 {[%clk 0:00:22.1]} 40. Bg2 {[%clk 0:01:26]}
40... Kg8 {[%clk 0:00:22.2]} 41. Kg4 {[%clk 0:01:27]} 41... Qb1 {[%clk
0:00:19.6]} 42. f5 {[%clk 0:01:21.3]} 42... Qd1+ {[%clk 0:00:19.2]} 43. Kf4
{[%clk 0:01:21]} 43... Qh5 {[%clk 0:00:19.9]} 44. Qh3 {[%clk 0:01:14.9]} 44...
Qe2 {[%clk 0:00:17.8]} 45. g6 {[%clk 0:01:07.4]} 45... Qd2+ {[%clk 0:00:12]} 46.
Qe3 {[%clk 0:01:07.8]} 46... Qxg2 {[%clk 0:00:12.1]} 47. gxf7+ {[%clk
0:01:07.7]} 47... Kxf7 {[%clk 0:00:14]} 48. fxe6+ {[%clk 0:01:08.6]} 48... Kxe6
{[%clk 0:00:15.9]} 49. c6 {[%clk 0:01:06.1]} 49... Qf3+ {[%clk 0:00:11.9]} 50.
Qxf3 {[%clk 0:01:06.5]} 50... exf3 {[%clk 0:00:13.8]} 51. c7 {[%clk 0:01:07.9]}
51... Kd7 {[%clk 0:00:15]} 52. Ke3 {[%clk 0:01:05.9]} 52... Kxc7 {[%clk
0:00:15.8]} 0-1